[Event "88th Tata Steel Masters 2026"]
[White "Erdogmus,Yagiz Kaan"]
[Black "Van Foreest,Jorden"]
[Site "Wijk aan Zee"]
[Round "6.2"]
[Annotator "TA"]
[Result "1-0"]
[Date "2026.01.23"]
[WhiteElo "2658"]
[BlackElo "2703"]
[PlyCount "91"]
[TimeControl "60"]

{[%evp 9,90,-8,-8,-5,0,0,0,0,0,-13,-10,-31,-33,-33,-32,-33,-29,-34,-22,-27,0,-14,-8,-25,-18,-28,0,-15,-10,-33,-36,-36,-11,-36,-36,-36,-15,-36,15,19,21,20,23,25,37,36,35,30,55,56,58,57,64,75,77,69,58,37,49,48,97,69,70,73,75,70,190,61,54,36,299,279,275,177,187,189,185,183,177,173,556,563,551]} 1. e4 {[%emt 0:0:0]} e5 {[%emt 0:0:0]} 2. Nf3 {[%emt 0:0:0]} Nc6 {[%emt 0:0:0]} 3. Nc3 {[%emt 0:0:0]} Nf6 {[%emt 0:0:0]} 4. h3 {[%emt 0:0:0]} Bb4 {[%emt 0:0:0]} 5. Bd3 {[%emt 0:0:0]} O-O {[%emt 0:0:0]} 6. O-O {[%emt 0:0:0] C47: Scotch Four Knights and Four Knights with 4 g3.} Bxc3 {[%emt 0:0:0]} 7. dxc3 {[%emt 0:0:0]} a5 {[%emt 0:13:19]} 8. Be3 {[%emt 0:15:16] The position is equal.} d6 {[%emt 0:0:0]} 9. Nd2 {[%emt 0:0:36]} Be6 {[%emt 0:0:0]} 10. f4 $146 {[%emt 0:11:36]} ({Predecessor:} 10. c4 Nd7 11. Nb1 Ne7 12. Nc3 f5 13. f4 b6 14. Qe2 Kh8 15. Rae1 Qe8 16. Kh2 {1-0 Iskandarov,M (2534)-Ivic,V (2639) TUR-chT 1st League 2025 (5.1)} )exf4 {[%emt 0:0:32]} 11. Bxf4 {[%emt 0:2:46]} Nd7 {[%emt 0:11:31]} 12. Nf3 {[%emt 0:10:47][%cal Yd2f3,Yf3d4,Yd4b5][%mdl 32]} Nce5 {[%emt 0:0:0]} 13. Nd4 {[%emt 0:0:0]} a4 {[%emt 0:0:0]} 14. Qe1 {[%emt 0:12:5]} Ra5 {[%emt 0:9:37]} 15. c4 {[%emt 0:8:44]} Ra8 {[%emt 0:2:52]} 16. Qc3 {[%emt 0:9:44]} Re8 {[%emt 0:2:52]} 17. b3 {[%emt 0:4:26]} h6 {[%emt 0:12:5]} 18. Nb5 {[%emt 0:10:35]} axb3 {[%emt 0:11:44]} 19. cxb3 {[%emt 0:0:0]} Nxd3 {[%emt 0:3:19]} 20. Qxd3 {[%emt 0:0:0]} Nc5 {[%emt 0:1:31]} 21. Qf3 {[%emt 0:4:5]} f6 {[%emt 0:17:2]} 22. Nc3 {[%emt 0:4:17]} Qe7 {[%emt 0:6:9]} 23. Rae1 {[%emt 0:2:9]} Qf7 {[%emt 0:1:37]} (23... Bf7 $15 )24. Qg3 $11 {[%emt 0:3:42]} Qh5 {[%emt 0:0:50]} 25. e5 {[%emt 0:2:15]} fxe5 {[%emt 0:3:0]} 26. Bxe5 {[%emt 0:0:32][%csl Ge5][%cal Rg3g7] [#]} Qg5 {[%emt 0:0:36]} 27. Qxg5 {[%emt 0:0:32]} hxg5 {[%emt 0:0:37]} 28. Bd4 {[%emt 0:0:52]} Nd3 {[%emt 0:1:42]} 29. Re3 {[%emt 0:1:26]} Nb4 {[%emt 0:3:35][%cal Yc7c5]} 30. Nb5 {[%emt 0:2:16]} Bd7 {[%emt 0:3:5]} 31. Rxe8+ {[%emt 0:1:26]} Rxe8 {[%emt 0:0:32]} 32. Nxc7 {[%emt 0:0:35]} Re2 {[%emt 0:2:5]} 33. a3 {[%emt 0:1:49]} Nc2 {[%emt 0:2:59][%csl Ya3,Yd4]} 34. Bf2 {[%emt 0:0:31]} Nxa3 {[%emt 0:0:47]} (34... Rd2 $14 )35. Rd1 {[%emt 0:0:35]} Bc6 {[%emt 0:0:32]} 36. Rxd6 {[%emt 0:0:33]} Rb2 {[%emt 0:0:35]} 37. Rg6 {[%emt 0:2:8]} Kf7 {[%emt 0:2:24]} (37... Rb1+ $14 38. Kh2 Kf7 39. Rxg5 Rxb3 )38. Rxg5 {[%emt 0:0:31]} (38. Rxg7+ $1 $18 Kxg7 39. Bd4+ Kg6 40. Bxb2 )Rxb3 $14 {[%emt 0:0:34]} 39. Rf5+ {[%emt 0:2:36]} Ke7 $2 {[%emt 0:1:16][%mdl 8192] [#] This costs Black the game.} (39... Kg6 $14 40. Rf4 Rc3 )40. Bc5+ $18 {[%emt 0:0:0]} Kd8 {[%emt 0:9:58]} 41. Ne6+ {[%emt 0:30:48]} Kd7 {[%emt 0:10:45]} 42. Nd4 {[%emt 0:2:19]} ({Resist} 42. Nxg7 Nxc4 43. Rf7+ Kc8 $16 )Rb1+ {[%emt 0:0:10]} 43. Kh2 {[%emt 0:0:6]} Nxc4 {[%emt 0:0:5]} 44. Rf7+ {[%emt 0:0:4]} Kd8 $2 {[%emt 0:1:19]} (44... Ke8 {is more resistant.} 45. Rxg7 Bd5 )45. Ne6+ {[%emt 0:2:50]} Kc8 {[%emt 0:0:7]} 46. Ba7 {[%emt 0:0:9] Weighted Error Value: White=0.14 (very precise) /Black=0.30   Loses game:     	---       	Black=1      Missed win:     	White=1     	---        Mistake:       	White=1     	Black=4      Inaccurate:     	White=1     	Black=2      OK:         	White=3     	Black=7      Best:        	White=1     	---} 1-0

[Event "88th Tata Steel Masters 2026"]
[White "Aravindh,Chithambaram VR."]
[Black "Sindarov,Javokhir"]
[Site "Wijk aan Zee"]
[Round "6.3"]
[Annotator "TA"]
[Result "1/2-1/2"]
[Date "2026.01.23"]
[WhiteElo "2700"]
[BlackElo "2726"]
[PlyCount "82"]
[TimeControl "60"]

{[%evp 16,82,0,0,13,5,7,11,15,8,18,13,38,49,60,70,70,70,70,67,88,88,88,74,91,88,98,79,73,0,0,0,26,0,0,-18,-60,0,-7,-281,-279,-247,-227,-235,-215,-273,-187,-187,-182,-178,-280,-293,-270,-275,-315,-202,-112,-100,-16,-16,-16,-143,-149,-1308,-1307,-1062,0,0,0]} 1. d4 {[%emt 0:0:0]} d5 {[%emt 0:0:0]} 2. c4 {[%emt 0:0:0]} e6 {[%emt 0:0:0]} 3. Nf3 {[%emt 0:0:0]} Nf6 {[%emt 0:0:0]} 4. Nc3 {[%emt 0:0:0]} c6 {[%emt 0:0:0]} 5. g3 {[%emt 0:0:0]} Nbd7 {[%emt 0:0:0]} 6. Bg2 {[%emt 0:0:0]} dxc4 {[%emt 0:0:0]} 7. O-O {[%emt 0:0:0]} Be7 {[%emt 0:0:0]} 8. a4 {[%emt 0:0:0]} O-O {[%emt 0:0:0]} 9. e4 {[%emt 0:0:0][%cal Ye2e4,Ye4e5][%mdl 32]} b5 {[%emt 0:0:0] E07: Closed Catalan: Main Line (5 Nf3 0-0 6 0-0 Nbd7).} 10. axb5 {[%emt 0:0:0]} cxb5 {[%emt 0:0:0]} 11. e5 {[%emt 0:0:0]} Nd5 {[%emt 0:0:0]} 12. Nxb5 {[%emt 0:0:0]} Bb7 {[%emt 0:5:24]} 13. Nd2 {[%emt 0:0:0]} a6 $146 {[%emt 0:8:27]} ({Predecessor:} 13... N7b6 14. Ne4 Bc6 15. Nbc3 Qd7 16. h4 Rab8 17. Bg5 h6 18. Bxe7 Qxe7 19. Qe2 Qc7 {1-0 Stefansson,V (2530)-Domalchuk Jonasson,A (2399) EU-ch 24th Petrovac 2024 (3)} )14. Nc3 {[%emt 0:0:0]} Nxc3 {[%emt 0:0:37]} 15. bxc3 {[%emt 0:0:0] A sharp opening} Bxg2 {[%emt 0:0:36]} 16. Kxg2 {[%emt 0:0:0]} Nb6 {[%emt 0:0:38]} 17. Ne4 {[%emt 0:15:17]} a5 {[%emt 0:1:9] White has space advantage and is better} 18. Qg4 {[%emt 0:8:53]} Kh8 {[%emt 0:3:8]} 19. Ba3 {[%emt 0:1:1] White is much more active.} Bxa3 {[%emt 0:14:48]} 20. Rxa3 {[%emt 0:0:36]} Qc7 {[%emt 0:0:35]} 21. Rb1 {[%emt 0:3:19]} Qc6 {[%emt 0:6:9]} 22. Kh3 {[%emt 0:8:59]} (22. Kg1 $16 )Nd5 $11 {[%emt 0:19:10]} 23. Nd6 {[%emt 0:1:44]} Ra7 {[%emt 0:9:45] Prevents Rb7} 24. Rb5 {[%emt 0:17:50]} f5 {[%emt 0:1:57][%cal Yf7f5,Yf5f4][%mdl 32]} 25. Qh5 {[%emt 0:9:8]} a4 {[%emt 0:6:28]} 26. Rc5 {[%emt 0:5:54]} ({Better is} 26. f4 $15 )Qa8 {[%emt 0:1:30]} 27. Rxc4 $2 {[%emt 0:11:56][%mdl 8192] [#]} (27. Nxc4 $6 Qb7 $17 )(27. f4 $11 )h6 $19 {[%emt 0:16:57]} 28. Qe2 {[%emt 0:10:27]} g5 {[%emt 0:4:0][%mdl 1024] Black has strong compensation.} 29. f3 {[%emt 0:0:36]} f4 {[%emt 0:4:19]} 30. Rc5 {[%emt 0:7:57]} Ne3 {[%emt 0:2:13]} 31. c4 {[%emt 0:1:40]} Rg7 {[%emt 0:1:35]} 32. d5 {[%emt 0:3:1]} Qa7 {[%emt 0:0:34]} 33. Ne4 {[%emt 0:2:27]} h5 {[%emt 0:4:12]} 34. gxf4 {[%emt 0:1:3]} (34. dxe6 $2 g4+ 35. fxg4 hxg4+ $19 )gxf4 {[%emt 0:1:6]} 35. Rxe3 {[%emt 0:4:24]} (35. dxe6 $2 {too greedy.} Qb6 36. Nd6 Qxc5 $19 )fxe3 {[%emt 0:0:30]} (35... Qf7 $19 36. Nd6 Qa7 )36. Qxe3 $17 {[%emt 0:0:32]} Rg6 {[%emt 0:0:35] Repels Qh6+} (36... Qf7 $17 37. Qh6+ Rh7 )37. Nf6 {[%emt 0:0:50]} exd5 {[%emt 0:1:37]} 38. cxd5 {[%emt 0:0:54]} (38. f4 $11 )a3 {[%emt 0:0:35]} 39. Qe4 $2 {[%emt 0:1:3][%mdl 8192]} (39. Nxh5 a2 40. Kh4 a1=Q 41. d6 Qh1 42. Qf2 Qxc5 43. Qd2 Qxf3 44. h3 Qc4+ )(39. Rc3 $17 Qxe3 40. Rxe3 )Rgxf6 $19 {[%emt 0:1:4]} 40. exf6 {[%emt 0:0:0]} a2 $2 {[%emt 0:0:0]} (40... Qxc5 $19 41. Qf4 Qg1 )41. Qg6 $11 {[%emt 0:27:51][%cal Yd5d6] [#] Threatening mate with d6!.} a1=Q {[%emt 0:1:5] Weighted Error Value: White=0.45/Black=0.29 (precise)   Loses game:     	White=2     	---        Mistake:       	White=3     	Black=2      Inaccurate:     	White=1     	Black=2      OK:         	White=5     	Black=1} 1/2-1/2

[Event "88th Tata Steel Masters 2026"]
[White "Niemann,Hans Moke"]
[Black "Keymer,Vincent"]
[Site "Wijk aan Zee"]
[Round "6.4"]
[Annotator "TA"]
[Result "0-1"]
[Date "2026.01.23"]
[WhiteElo "2725"]
[BlackElo "2776"]
[PlyCount "128"]
[TimeControl "60"]

{[%evp 10,128,18,23,23,7,20,20,15,7,0,10,12,0,0,0,0,0,0,0,0,0,0,0,0,0,0,0,11,0,0,0,0,0,-5,-15,-10,-8,0,-8,0,-28,12,12,18,-12,-13,-25,-18,-45,-27,-48,-8,-29,-24,-43,-22,-41,-14,-31,0,-26,-7,-16,0,-18,-12,-77,-75,-94,-101,-161,-162,-160,-157,-226,-216,-363,-366,-387,-334,-326,-291,-313,-316,-325,-316,-317,-318,-318,-316,-320,-286,-326,-149,-229,-231,-241,-224,-268,-282,-261,-189,-189,-181,-192,-197,-196,-196,-214,-195,-193,-180,-213,-208,-210,-160,-250,-243,-239,-243]} 1. e4 {[%emt 0:0:0]} e5 {[%emt 0:0:0]} 2. Nf3 {[%emt 0:0:0]} Nc6 {[%emt 0:0:0]} 3. Bc4 {[%emt 0:0:0]} Nf6 {[%emt 0:0:0]} 4. d3 {[%emt 0:0:0]} Bc5 {[%emt 0:0:0]} 5. O-O {[%emt 0:0:0]} d6 {[%emt 0:0:0]} 6. c3 {[%emt 0:0:0]} a5 $1 {[%emt 0:0:0][%mdl 4] is currently scoring better than 6...0-0. C54: Giuoco Piano: 4 c3 Nf6, main lines with 5 d4 and 5 d3.} 7. Re1 {[%emt 0:0:0]} h6 {[%emt 0:0:0]} 8. Nbd2 {[%emt 0:0:0]} O-O {[%emt 0:0:0] The position is equal.} 9. h3 {[%emt 0:0:0]} a4 {[%emt 0:0:0]} 10. Nf1 {[%emt 0:0:0]} Bd7 {[%emt 0:0:0]} 11. d4 {[%emt 0:0:0]} Bb6 {[%emt 0:0:0]} 12. Ng3 {[%emt 0:0:0]} Re8 {[%emt 0:0:0]} 13. Bf1 {[%emt 0:0:0]} Bc8 $1 $146 {[%emt 0:0:0][%mdl 8] A top novelty.} ({Predecessor:} 13... Ba5 14. dxe5 Nxe5 15. Be3 b5 16. Nxe5 dxe5 17. Qf3 Rb8 18. Rad1 Qe7 19. a3 Be6 20. Nf5 Bxf5 21. Qxf5 c6 {½-½ Dominguez Perez,L (2741)-Oparin,G (2662) USA-ch Saint Louis 2024 (8)} )14. Bb5 {[%emt 0:18:0]} Bd7 {[%emt 0:0:0]} 15. Bf1 {[%emt 0:8:52]} Bc8 {[%emt 0:0:0]} 16. a3 {[%emt 0:5:26]} Bd7 {[%emt 0:1:23]} 17. Qd3 {[%emt 0:2:29]} Na5 {[%emt 0:17:59]} 18. Be3 {[%emt 0:2:55]} Nb3 {[%emt 0:3:36]} 19. Rad1 {[%emt 0:1:3]} exd4 $1 {[%emt 0:3:53]} 20. Bxd4 {[%emt 0:14:38]} Nxd4 {[%emt 0:0:58]} 21. cxd4 {[%emt 0:1:36]} Be6 {[%emt 0:5:51]} 22. d5 {[%emt 0:3:22]} Bc8 {[%emt 0:7:0]} 23. Qc2 {[%emt 0:1:36]} Ra5 {[%emt 0:6:1]} 24. Bc4 {[%emt 0:9:49]} Nd7 {[%emt 0:4:15]} 25. Kh2 {[%emt 0:7:11]} Ne5 {[%emt 0:14:31]} 26. Nxe5 {[%emt 0:0:36]} dxe5 {[%emt 0:0:41]} 27. Qd2 {[%emt 0:0:41]} Qd6 {[%emt 0:12:19]} 28. Rf1 {[%emt 0:0:41]} Rc5 {[%emt 0:1:41]} 29. Bd3 {[%emt 0:2:33]} Bd7 {[%emt 0:3:27]} 30. Kh1 {[%emt 0:2:23]} Ra5 {[%emt 0:6:50]} 31. Bc2 {[%emt 0:5:13]} Raa8 {[%emt 0:2:23]} 32. Ne2 {[%emt 0:5:33]} Re7 {[%emt 0:4:17]} 33. Qd3 {[%emt 0:1:50]} Ra5 {[%emt 0:1:35]} 34. Qd2 {[%emt 0:2:25]} Ra8 {[%emt 0:1:49]} 35. Qd3 {[%emt 0:0:36]} Qc5 {[%emt 0:6:22]} 36. Nc3 {[%emt 0:1:53] Dodges Bb5} Ree8 {[%emt 0:2:56]} 37. Qg3 {[%emt 0:6:4]} Qd6 {[%emt 0:2:58]} 38. f4 {[%emt 0:1:28]} (38. Rd2 $11 {keeps the balance.} )exf4 $17 {[%emt 0:0:56] Black keeps a firm grip on the game.} 39. Rxf4 {[%emt 0:0:34]} Bc5 {[%emt 0:2:2]} 40. e5 {[%emt 0:0:0]} Qxe5 $19 {[%emt 0:0:0] [#]} 41. Ne4 {[%emt 0:23:27]} Be7 {[%emt 0:32:11] Inhibits Nf6+.} 42. d6 {[%emt 0:2:53]} (42. Qf2 $17 )cxd6 {[%emt 0:1:14][%cal Yd6d5]} 43. Qf2 {[%emt 0:1:46]} (43. Rdf1 $142 )d5 {[%emt 0:2:41]} 44. Ng3 {[%emt 0:0:17]} Bd6 {[%emt 0:4:38]} 45. Rf3 {[%emt 0:0:4]} Rac8 {[%emt 0:2:59]} 46. Bd3 {[%emt 0:0:37]} Re7 {[%emt 0:3:26]} 47. Rf1 {[%emt 0:0:15]} Rf8 {[%emt 0:2:8]} 48. Qg1 {[%emt 0:0:35]} Qxb2 {[%emt 0:2:42]} 49. Nf5 {[%emt 0:0:4]} Bxf5 {[%emt 0:0:4]} 50. Rxf5 {[%emt 0:0:2]} Qxa3 {[%emt 0:1:34]} 51. Qd4 {[%emt 0:0:10]} Qc5 {[%emt 0:1:45]} (51... Bc7 $19 {White must now prevent ...Qd6.} 52. Rxd5 Qb3 )52. Qxa4 {[%emt 0:0:36]} (52. Rxd5 $17 Qxd4 53. Rxd4 )Bc7 {[%emt 0:1:17]} 53. R5f3 {[%emt 0:0:53]} Re3 {[%emt 0:1:22]} 54. Qd7 {[%emt 0:0:20]} Rxf3 {[%emt 0:0:6]} 55. Rxf3 {[%emt 0:0:2]} Qd6 {[%emt 0:0:12]} 56. Qxd6 {[%emt 0:1:11] Black is clearly better.} Bxd6 {[%emt 0:0:1][%mdl 4096] Endgame KRB-KRB. Black is 3 pawns up.} 57. Kg1 {[%emt 0:0:7]} Rc8 {[%emt 0:0:14]} 58. Kf1 {[%emt 0:0:10]} g6 {[%emt 0:0:15]} 59. Bb5 {[%emt 0:0:48]} Kg7 {[%emt 0:0:10]} 60. Ba4 {[%emt 0:0:14]} d4 {[%emt 0:0:26]} 61. Rb3 {[%emt 0:15:54]} Rc4 {[%emt 0:15:12]} 62. Bd7 {[%emt 0:0:4]} Rb4 {[%emt 0:0:7]} 63. Rf3 {[%emt 0:0:8]} (63. Rxb4 $17 Bxb4 64. Ke2 )Rb1+ {[%emt 0:0:13]} 64. Ke2 {[%emt 0:0:14]} Rb2+ {[%emt 0:0:4] Weighted Error Value: White=0.21 (precise) /Black=0.14 (very precise)   Missed win:     	---       	Black=1      Mistake:       	White=6     	---        Inaccurate:     	White=3     	Black=3      OK:         	White=10    	Black=19     Best:        	---       	Black=2      Strong:       	---       	Black=1} 0-1

[Event "88th Tata Steel Masters 2026"]
[White "Abdusattorov,Nodirbek"]
[Black "Gukesh D"]
[Site "Wijk aan Zee"]
[Round "6.5"]
[Annotator "TA"]
[Result "1-0"]
[Date "2026.01.23"]
[WhiteElo "2751"]
[BlackElo "2754"]
[PlyCount "73"]
[TimeControl "60"]

{[%evp 13,73,20,23,3,4,-5,-2,-1,-7,-9,2,0,2,-10,-1,0,0,-14,-11,-8,-13,-9,-9,-27,-23,-50,-43,-40,0,-26,-24,-53,-25,-26,-16,-59,-76,-79,-63,-105,-108,-64,-54,-80,-61,-61,-70,-64,-57,-80,-97,-95,-55,-104,-24,-26,0,0,0,0,29988,831]} 1. e4 {[%emt 0:0:0]} e5 {[%emt 0:0:0]} 2. Nf3 {[%emt 0:0:0]} Nc6 {[%emt 0:0:0]} 3. Bb5 {[%emt 0:0:0]} a6 {[%emt 0:0:0]} 4. Ba4 {[%emt 0:0:0]} Nf6 {[%emt 0:0:0]} 5. O-O {[%emt 0:0:0]} Be7 {[%emt 0:0:0]} 6. Bxc6 {[%emt 0:0:0]} dxc6 {[%emt 0:0:0]} 7. d3 {[%emt 0:0:0]} Nd7 {[%emt 0:0:0]} 8. Nc3 {[%emt 0:0:0] C85: Closed Ruy Lopez: Deferred Exchange Variation.} O-O {[%emt 0:0:0]} 9. Be3 {[%emt 0:0:0]} Re8 {[%emt 0:0:0]} 10. a4 {[%emt 0:0:0] The position is equal.} a5 {[%emt 0:0:0]} 11. Kh1 {[%emt 0:0:0]} Bd6 {[%emt 0:0:52]} 12. Ne2 {[%emt 0:0:0][%cal Yc3e2,Ye2g3,Yg3f5][%mdl 32]} Nf8 {[%emt 0:1:32]} 13. Ng3 {[%emt 0:0:0]} c5 {[%emt 0:10:37]} 14. Nd2 {[%emt 0:8:0]} Ne6 {[%emt 0:3:42]} 15. Nf5 $146 {[%emt 0:7:56]} ({Predecessor:} 15. Nc4 Nd4 16. c3 Nc6 17. Nxd6 Qxd6 18. f4 exf4 19. Bxf4 Qd8 20. Qh5 Be6 21. Qxc5 Qxd3 22. Bxc7 {1-0 Shevchenko,K (2662)-Parligras,M (2570) ROM-ch Sebes 2023 (8)} )Bf8 {[%emt 0:1:25]} 16. Nc4 {[%emt 0:3:2]} f6 {[%emt 0:7:55]} 17. Qg4 {[%emt 0:9:26]} Kh8 {[%emt 0:7:32]} 18. Qg3 {[%emt 0:8:59]} b6 {[%emt 0:3:13]} 19. h4 {[%emt 0:5:40]} g6 {[%emt 0:16:32]} 20. Nh6 {[%emt 0:1:5]} Qd7 {[%emt 0:3:12] Inhibits Nf7+.} 21. Ng4 {[%emt 0:5:12]} Bg7 {[%emt 0:0:52]} 22. f3 {[%emt 0:3:39]} Ba6 {[%emt 0:9:36]} 23. b3 {[%emt 0:0:50]} Rad8 {[%emt 0:1:49]} 24. h5 {[%emt 0:14:37]} gxh5 {[%emt 0:1:45]} 25. Nh6 {[%emt 0:1:7]} Bxc4 {[%emt 0:7:28]} 26. bxc4 {[%emt 0:2:42]} Bxh6 {[%emt 0:4:2]} 27. Bxh6 {[%emt 0:0:32]} Rg8 {[%emt 0:4:31]} 28. Qh2 {[%emt 0:6:11]} Rg6 {[%emt 0:0:43]} (28... Qe8 {simplifies} 29. Rf2 Ng5 30. Rff1 Rd7 )29. Qxh5 {[%emt 0:6:28]} Nf4 {[%emt 0:5:15]} 30. Bxf4 {[%emt 0:0:43]} exf4 {[%emt 0:0:31]} 31. g4 {[%emt 0:0:38]} fxg3 {[%emt 0:3:14][%csl Yg3] Black has a strong passed pawn} 32. Kg2 {[%emt 0:0:31]} Qd4 {[%emt 0:4:55]} 33. Rae1 {[%emt 0:2:45]} Kg7 {[%emt 0:1:48]} (33... Re8 $17 )34. e5 $11 {[%emt 0:2:5]} Rh6 {[%emt 0:4:32]} 35. Qg4+ {[%emt 0:1:6]} Rg6 {[%emt 0:1:58]} 36. Qf5 {[%emt 0:3:35]} Rg5 $2 {[%emt 0:3:23][%mdl 8192] [#]} (36... Rf8 $11 )37. Qxf6+ {[%emt 0:0:39] Weighted Error Value: White=0.09 (flawless) /Black=0.33   Loses game:     	---       	Black=1      Mistake:       	---       	Black=1      Inaccurate:     	White=7     	Black=4      OK:         	White=3     	Black=7      Best:        	White=2     	---} 1-0

[Event "88th Tata Steel Masters 2026"]
[White "Giri,Anish"]
[Black "Nguyen,Thai Dai Van"]
[Site "Wijk aan Zee"]
[Round "6.6"]
[Annotator "TA"]
[Result "1/2-1/2"]
[Date "2026.01.23"]
[WhiteElo "2760"]
[BlackElo "2656"]
[PlyCount "104"]
[TimeControl "60"]

{[%evp 9,104,0,12,18,22,21,18,9,27,6,8,8,8,8,11,6,0,0,25,10,33,32,16,9,20,28,41,43,47,15,45,45,32,0,0,0,45,40,45,66,55,47,42,63,64,63,45,43,35,43,55,57,47,0,0,0,0,0,0,0,0,0,0,0,0,0,0,0,0,0,0,0,0,0,0,0,0,0,0,0,0,0,0,0,0,0,0,0,0,0,0,0,0,0,0,0,0]} 1. d4 {[%emt 0:0:0]} d5 {[%emt 0:0:0]} 2. c4 {[%emt 0:0:0]} e6 {[%emt 0:0:0]} 3. Nf3 {[%emt 0:0:0]} Nf6 {[%emt 0:0:0]} 4. cxd5 {[%emt 0:0:0]} exd5 {[%emt 0:0:0]} 5. Nc3 {[%emt 0:0:0]} h6 {[%emt 0:0:0]} 6. Bf4 {[%emt 0:0:0] D35: Queen's Gambit Declined: Exchange Variation.} Bd6 {[%emt 0:0:0]} 7. Bxd6 {[%emt 0:0:0]} Qxd6 {[%emt 0:0:0]} 8. e3 {[%emt 0:0:0]} Bf5 {[%emt 0:0:0]} 9. Ne5 {[%emt 0:13:21]} Nbd7 {[%emt 0:10:21]} 10. Bd3 $146 {[%emt 0:2:19]} ({Predecessor:} 10. Nxd7 Qxd7 11. Bd3 O-O 12. O-O c6 13. a3 Ne8 14. Bxf5 Qxf5 15. Qf3 Qxf3 16. gxf3 {0-1 Alakhverdiev,A (2008)-Palczert,M (2299) Titled Tuesday intern op 20th Feb Early blitz 2024 (1)} )Bxd3 {[%emt 0:11:30]} 11. Nxd3 {[%emt 0:0:48]} O-O {[%emt 0:0:44]} 12. O-O {[%emt 0:2:18]} c6 {[%emt 0:2:17]} 13. b4 {[%emt 0:20:34]} a5 {[%emt 0:5:25]} 14. b5 {[%emt 0:3:37]} Ne4 {[%emt 0:7:50]} 15. Nxe4 {[%emt 0:1:30]} dxe4 {[%emt 0:0:34]} 16. bxc6 {[%emt 0:1:4]} bxc6 {[%emt 0:0:59]} 17. Nf4 {[%emt 0:1:13]} Nf6 {[%emt 0:5:29]} 18. Rc1 {[%emt 0:4:12]} Rfb8 {[%emt 0:4:7]} 19. Qa4 {[%emt 0:14:17]} Rb5 {[%emt 0:7:24]} 20. h3 {[%emt 0:2:18]} Rab8 {[%emt 0:9:46]} 21. Rc3 {[%emt 0:12:55]} Nd5 {[%emt 0:19:45]} 22. Nxd5 {[%emt 0:0:53]} Qxd5 {[%emt 0:0:48]} 23. Rfc1 {[%emt 0:7:3]} Rb2 {[%emt 0:2:10]} 24. a3 {[%emt 0:3:49]} Qb5 {[%emt 0:14:51]} 25. Qd1 {[%emt 0:4:21]} Qe2 {[%emt 0:0:34]} 26. Qxe2 {[%emt 0:3:58] Successful Defense White} (26. Rxc6 Qxf2+ 27. Kh2 Qxg2# )Rxe2 $14 {[%emt 0:0:32][%mdl 4096] Endgame KRR-KRR} 27. Rc5 {[%emt 0:1:48]} Rbb2 {[%emt 0:2:5]} 28. Rf5 {[%emt 0:0:52]} (28. Rxa5 Rxf2 29. Re5 (29. Ra8+ $2 Kh7 $19 )Rxg2+ 30. Kh1 Rh2+ 31. Kg1 Rbg2+ (31... Rxh3 $2 32. Re8+ Kh7 33. Rxe4 $19 )32. Kf1 Rd2 $17 )g6 {[%emt 0:2:18]} 29. Rf4 {[%emt 0:0:50]} g5 {[%emt 0:1:5]} 30. Rf5 {[%emt 0:2:17]} ({Reject} 30. Rxe4 Rxf2 31. Rg4 f6 $11 )Rb5 {[%emt 0:1:9]} 31. Rcc5 {[%emt 0:4:13]} (31. Rf6 $14 {is more appropriate.} )Ra2 $11 {[%emt 0:1:8] The position is equal.} 32. Rxb5 {[%emt 0:1:11]} cxb5 {[%emt 0:0:59]} 33. Rxb5 {[%emt 0:0:34]} Rxa3 {[%emt 0:0:33] KR-KR} 34. Re5 {[%emt 0:1:34]} f6 {[%emt 0:1:33]} 35. Re7 {[%emt 0:0:48]} Kf8 {[%emt 0:0:42]} 36. Ra7 {[%emt 0:2:43]} h5 {[%emt 0:1:3]} 37. g3 {[%emt 0:1:1]} a4 {[%emt 0:0:32][%cal Ya5a4,Ya4a3,Ya3a2][%mdl 32]} 38. h4 {[%emt 0:0:43]} Ra1+ {[%emt 0:0:38]} 39. Kg2 {[%emt 0:0:31]} a3 {[%emt 0:0:43]} 40. d5 {[%emt 0:0:0]} a2 {[%emt 0:0:0]} 41. d6 {[%emt 0:26:38]} gxh4 {[%emt 0:27:51]} 42. Ra8+ {[%emt 0:1:23]} Kf7 {[%emt 0:0:12]} 43. d7 {[%emt 0:0:11]} Rd1 {[%emt 0:4:20]} 44. gxh4 {[%emt 0:0:13]} Rxd7 {[%emt 0:0:8]} 45. Rxa2 {[%emt 0:0:2]} Kg6 {[%emt 0:0:34]} 46. Kg3 {[%emt 0:2:41]} Rd1 {[%emt 0:1:31]} 47. Kf4 {[%emt 0:0:51]} Rh1 {[%emt 0:0:4]} 48. Kxe4 {[%emt 0:0:5]} Rxh4+ {[%emt 0:0:3]} 49. f4 {[%emt 0:0:55]} Rg4 {[%emt 0:9:34]} 50. Ra8 {[%emt 0:1:30]} h4 {[%emt 0:0:18]} 51. Rg8+ {[%emt 0:2:25]} Kh5 {[%emt 0:0:6]} 52. Rh8+ {[%emt 0:0:3]} Kg6 {[%emt 0:0:5] Weighted Error Value: White=0.03 (flawless) /Black=0.03 (flawless)   Mistake:       	White=1     	---        Inaccurate:     	White=2     	Black=2      OK:         	White=14    	Black=13     Best:        	---       	Black=1} 1/2-1/2